bitfinex/quotes_BTCUSD_20220731
["timestamp","ask_amount","ask_price","bid_price","bid_amount"]
[1659271040754,0.303751,23768.0,23765.0,0.210293]
[1659271040987,0.40725733,23771.0,23765.0,0.210293]
[1659271041225,0.303751,23770.0,23765.0,0.210293]
[1659271041428,0.303751,23769.0,23765.0,0.210293]
[1659271041748,0.40725733,23771.0,23765.0,0.210293]
[1659271041962,0.303751,23770.0,23766.0,0.40725733]
[1659271042185,0.34709243,23769.0,23764.0,0.01043559]
[1659271042401,0.303751,23768.0,23764.0,0.41769292]
[1659271042625,0.303751,23767.0,23764.0,0.41769292]
[1659271042835,0.71155476,23771.0,23764.0,0.41769292]
[1659271043059,0.303751,23770.0,23764.0,0.42869292]
[1659271043254,0.30367423,23770.0,23764.0,0.42869292]
[1659271043480,0.74313476,23771.0,23764.0,0.42869292]
[1659271043481,0.303751,23769.0,23764.0,0.42869292]
[1659271043709,0.303654,23768.0,23764.0,0.42869292]
[1659271043927,0.04334143,23767.0,23764.0,0.42869292]
[1659271044145,0.45725733,23771.0,23764.0,0.42869292]
[1659271044367,0.43491279,23770.0,23764.0,0.41769292]
[1659271044748,0.353654,23769.0,23764.0,0.41769292]
[1659271045018,0.303654,23769.0,23764.0,0.41769292]
[1659271045205,0.353654,23769.0,23764.0,0.41769292]
[1659271045638,0.303654,23768.0,23764.0,0.41769292]
[1659271045871,0.04334143,23767.0,23764.0,0.41769292]
[1659271047013,0.04334143,23767.0,23765.0,0.00519757]
[1659271047236,0.303654,23766.0,23765.0,0.00519757]
[1659271047432,0.04334143,23767.0,23765.0,0.00519757]
[1659271047654,0.303654,23766.0,23765.0,0.00519757]
[1659271047871,0.04334143,23767.0,23765.0,0.00519757]
[1659271048496,0.303654,23767.0,23765.0,0.00519757]
[1659271048716,0.303654,23766.0,23765.0,0.00519757]
[1659271049141,0.39159479,23770.0,23765.0,0.03019757]
[1659271049359,0.303654,23769.0,23765.0,0.03019757]
[1659271049559,0.303654,23768.0,23765.0,0.03019757]
[1659271049776,0.13125879,23766.0,23765.0,0.03019757]
[1659271050000,0.43491279,23766.0,23765.0,0.03019757]
[1659271050447,0.43491279,23766.0,23765.0,0.00519757]
[1659271050677,0.5919,23771.0,23765.0,0.05114757]
[1659271050934,0.303654,23770.0,23765.0,0.00519757]
[1659271051157,0.303654,23769.0,23765.0,0.04219757]
[1659271051375,0.99915733,23771.0,23765.0,0.04219757]
[1659271051604,0.303654,23770.0,23765.0,0.04219757]
[1659271051820,0.303654,23769.0,23765.0,0.04219757]
[1659271052044,0.303654,23768.0,23765.0,0.04219757]
[1659271052297,0.303654,23767.0,23765.0,0.04219757]
[1659271052987,0.303654,23767.0,23765.0,0.02919757]
[1659271054327,0.303654,23767.0,23765.0,0.00519757]
[1659271054545,0.33491279,23767.0,23765.0,0.00519757]
[1659271055036,0.33491279,23767.0,23765.0,0.02919757]
[1659271055869,0.303654,23767.0,23765.0,0.02919757]
[1659271056097,0.33491279,23767.0,23765.0,0.02919757]
[1659271056323,0.33491279,23767.0,23765.0,0.00519757]
[1659271056574,0.303654,23766.0,23765.0,0.00519757]
[1659271056771,0.03125879,23767.0,23765.0,0.00519757]
[1659271056968,1.20948833,23771.0,23765.0,0.00519757]
[1659271057325,0.303654,23769.0,23765.0,0.02919757]
[1659271057467,0.303654,23768.0,23765.0,0.02919757]
[1659271057683,0.303654,23767.0,23765.0,0.02919757]
[1659271057898,1.20948833,23771.0,23765.0,0.02919757]
[1659271058071,0.303654,23770.0,23765.0,0.02919757]
[1659271058294,0.303654,23769.0,23765.0,0.02919757]
[1659271058502,0.303654,23768.0,23765.0,0.00519757]
[1659271058750,0.303654,23767.0,23765.0,0.00519757]
[1659271058961,1.04915733,23771.0,23765.0,0.00519757]
[1659271058962,0.303654,23770.0,23765.0,0.00519757]
[1659271059163,0.303654,23769.0,23765.0,0.00519757]
[1659271059394,0.303654,23770.0,23765.0,0.00519757]
[1659271059612,0.303654,23769.0,23765.0,0.00519757]
[1659271059820,0.303654,23768.0,23765.0,0.00519757]
[1659271060058,0.303654,23767.0,23765.0,0.00519757]
[1659271060276,0.99915733,23771.0,23765.0,0.00519757]
[1659271060511,0.303654,23770.0,23765.0,0.00519757]
[1659271060734,0.303654,23769.0,23765.0,0.00519757]
[1659271060959,0.34699543,23768.0,23765.0,0.00519757]
[1659271061214,0.303654,23767.0,23765.0,0.00519757]
[1659271062033,1.04915733,23771.0,23765.0,0.00519757]
[1659271062260,0.303654,23770.0,23765.0,0.00519757]
[1659271062502,0.303654,23769.0,23765.0,0.00519757]
[1659271062711,0.303654,23770.0,23765.0,0.00519757]
[1659271062925,0.303654,23769.0,23765.0,0.00519757]
[1659271063127,0.303654,23768.0,23765.0,0.00519757]
[1659271063339,0.303654,23767.0,23765.0,0.00519757]
[1659271063544,0.303654,23766.0,23765.0,0.00519757]
[1659271063761,0.99922308,23771.0,23765.0,0.00519757]
[1659271063988,0.303654,23769.0,23765.0,0.00519757]
[1659271064258,0.303654,23768.0,23765.0,0.00519757]
[1659271064437,0.04334143,23768.0,23765.0,0.00519757]
[1659271064648,0.303654,23767.0,23765.0,0.00519757]
[1659271064854,0.99915733,23771.0,23765.0,0.00519757]
[1659271065091,0.303654,23770.0,23765.0,0.00519757]
[1659271065298,0.303654,23769.0,23765.0,0.01419757]
[1659271065521,0.34699543,23768.0,23765.0,0.01419757]
[1659271065726,0.303654,23767.0,23765.0,0.01419757]
[1659271065930,0.04334143,23768.0,23765.0,0.01419757]
[1659271066130,0.303654,23767.0,23765.0,0.01419757]
[1659271066387,0.99915733,23771.0,23765.0,0.01419757]
[1659271066617,0.303654,23769.0,23765.0,0.00519757]
[1659271066808,0.303654,23768.0,23765.0,0.00519757]
[1659271067007,0.99915733,23771.0,23765.0,0.00519757]
[1659271067238,0.303654,23769.0,23765.0,0.00519757]
[1659271067450,0.303654,23768.0,23765.0,0.00519757]
[1659271067727,0.303654,23767.0,23766.0,0.40725733]
[1659271067937,0.5919,23771.0,23766.0,0.40725733]
[1659271068157,0.303654,23770.0,23766.0,0.40725733]
[1659271068357,0.5919,23771.0,23766.0,0.40725733]
[1659271068358,0.34699543,23769.0,23766.0,0.40725733]
[1659271068643,0.5919,23771.0,23766.0,0.40725733]
[1659271068877,0.303654,23771.0,23766.0,0.40725733]
[1659271069096,0.303654,23770.0,23766.0,0.40725733]
[1659271069299,0.303654,23769.0,23766.0,0.40725733]
[1659271069518,0.04334143,23769.0,23766.0,0.40725733]
[1659271070215,0.303654,23771.0,23766.0,0.40725733]
[1659271071051,0.303654,23770.0,23766.0,0.40725733]
[1659271071280,0.303654,23769.0,23766.0,0.40725733]
[1659271071523,0.5723451,23772.0,23766.0,0.40725733]
[1659271071767,0.303654,23771.0,23766.0,0.40725733]
[1659271072022,0.303654,23770.0,23766.0,0.40725733]
[1659271072209,0.5723451,23772.0,23766.0,0.40725733]
[1659271072210,0.34699543,23769.0,23766.0,0.40725733]
[1659271072439,0.5723451,23772.0,23766.0,0.40725733]
[1659271072440,0.303654,23768.0,23766.0,0.40725733]
[1659271072663,0.303654,23767.0,23766.0,0.40725733]
[1659271072882,0.303654,23767.0,23766.0,0.41243044]
[1659271073125,0.303654,23767.0,23766.0,0.41543044]
[1659271073358,0.34699543,23767.0,23766.0,0.41543044]
[1659271073585,0.303654,23767.0,23766.0,0.41543044]
[1659271074375,0.303654,23767.0,23766.0,0.41243044]
[1659271074891,0.303654,23770.0,23766.0,0.41243044]
[1659271075001,0.04334143,23769.0,23766.0,0.43343044]
[1659271075204,0.303654,23770.0,23766.0,0.43343044]
[1659271075914,0.303654,23769.0,23766.0,0.43343044]
[1659271076158,0.303654,23768.0,23766.0,0.43343044]
[1659271076363,6.304e-05,23771.0,23766.0,0.41243044]
[1659271076364,0.05,23767.0,23766.0,0.41243044]
[1659271076593,6.304e-05,23771.0,23766.0,0.62271644]
[1659271076808,0.303654,23770.0,23766.0,0.62271644]
[1659271077037,0.34699543,23769.0,23766.0,0.64371644]
[1659271077261,0.5723451,23772.0,23766.0,0.64371644]
[1659271077262,0.303654,23768.0,23766.0,0.64371644]
[1659271077478,0.5723451,23772.0,23766.0,0.64371644]
[1659271077690,0.303654,23771.0,23766.0,0.64371644]
[1659271077935,0.303654,23770.0,23766.0,0.64371644]
[1659271078140,0.303654,23769.0,23766.0,0.64371644]
[1659271078367,0.303654,23768.0,23766.0,0.64371644]
[1659271078567,0.05,23767.0,23766.0,0.64371644]
[1659271078807,0.03125879,23768.0,23766.0,0.62271644]
[1659271079006,0.5723451,23772.0,23766.0,0.62671644]
[1659271079270,0.303654,23771.0,23766.0,0.62671644]
[1659271079508,0.303654,23770.0,23766.0,0.62671644]
[1659271079734,0.303654,23769.0,23766.0,0.62671644]
[1659271079960,0.303654,23768.0,23766.0,0.62671644]
[1659271080185,0.03125879,23768.0,23766.0,0.41643044]
[1659271080540,0.5723451,23772.0,23767.0,0.40725733]
[1659271080742,0.5723451,23772.0,23768.0,0.60372474]
[1659271080743,0.05,23771.0,23768.0,0.60372474]
[1659271080966,0.60360389,23772.0,23769.0,0.80280733]
[1659271080967,0.5723451,23772.0,23769.0,0.80280733]
[1659271081183,0.5723451,23772.0,23770.0,0.40725733]
[1659271082316,0.5723451,23772.0,23771.0,0.303654]
[1659271082550,0.5723451,23772.0,23771.0,0.71091133]
[1659271082990,0.5723451,23772.0,23771.0,0.72391133]
[1659271083925,0.5723451,23772.0,23771.0,0.42025733]
[1659271084355,0.5723451,23772.0,23771.0,0.40725733]
[1659271085034,0.5723451,23772.0,23771.0,0.42625733]
[1659271085744,0.57225983,23772.0,23771.0,0.42625733]
[1659271086407,0.57225983,23772.0,23771.0,0.40725733]
[1659271087131,0.57225983,23772.0,23771.0,0.42625733]
[1659271087824,0.57225983,23772.0,23771.0,0.019]
[1659271088070,0.87591383,23772.0,23771.0,0.019]
[1659271088273,0.87591383,23772.0,23770.0,0.01034593]
[1659271088518,0.303654,23771.0,23770.0,0.01034593]
[1659271088733,0.57225983,23772.0,23770.0,0.01034593]
[1659271088948,0.353654,23771.0,23770.0,0.01034593]
[1659271089165,0.05,23771.0,23770.0,0.02934593]
[1659271089411,0.60351862,23772.0,23770.0,0.02934593]
[1659271090305,0.60351862,23772.0,23770.0,0.01034593]
[1659271090461,0.303654,23771.0,23770.0,0.01034593]
[1659271090677,0.60351862,23772.0,23770.0,0.01034593]
[1659271091123,0.05,23771.0,23770.0,0.03634593]
[1659271091337,0.60351862,23772.0,23770.0,0.03634593]
[1659271091566,0.303654,23771.0,23770.0,0.03634593]
[1659271091734,0.60351862,23772.0,23770.0,0.03634593]
[1659271092343,0.60351862,23772.0,23770.0,0.01034593]
[1659271093031,0.60351862,23772.0,23770.0,0.02934593]
[1659271093989,0.57225983,23772.0,23770.0,0.02934593]
[1659271094434,0.57225983,23772.0,23770.0,0.01034593]
[1659271095105,0.60351862,23772.0,23770.0,0.02934593]
[1659271095528,0.303654,23771.0,23770.0,0.02934593]
[1659271095753,0.57225983,23772.0,23770.0,0.02934593]
[1659271096000,0.303654,23771.0,23770.0,0.02934593]
[1659271096216,0.60351862,23772.0,23770.0,0.02934593]
[1659271096477,0.303654,23771.0,23770.0,0.01034593]
[1659271096920,0.60351862,23772.0,23770.0,0.01034593]
[1659271097142,0.60351862,23772.0,23770.0,0.02934593]
[1659271097394,0.57225983,23772.0,23770.0,0.64685026]
[1659271098560,0.57225983,23772.0,23771.0,0.0449554]
[1659271098746,0.57225983,23772.0,23771.0,0.04495667]
[1659271099000,0.87591383,23772.0,23771.0,0.04495667]
[1659271099227,0.57225983,23772.0,23771.0,0.04495667]
[1659271099450,0.87591383,23772.0,23771.0,0.04495667]
[1659271099678,0.57225983,23772.0,23771.0,0.04495667]
[1659271100401,0.87591383,23772.0,23771.0,0.04495667]
[1659271101046,0.87591383,23772.0,23771.0,0.06912364]
[1659271101967,0.57225983,23772.0,23771.0,0.06912364]
[1659271102103,0.87591383,23772.0,23771.0,0.0743014]
[1659271102361,0.87591383,23772.0,23771.0,0.0553014]
[1659271103059,0.87591383,23772.0,23771.0,0.0743014]
[1659271104404,0.87591383,23772.0,23771.0,0.0553014]
[1659271105093,0.87591383,23772.0,23771.0,0.0743014]
[1659271105510,0.87470955,23772.0,23771.0,0.0743014]
[1659271106967,0.87470955,23772.0,23771.0,0.0553014]
[1659271107183,0.87470955,23772.0,23771.0,0.0743014]
[1659271107632,0.92470923,23772.0,23771.0,0.0743014]
[1659271108310,0.92470923,23772.0,23771.0,0.0553014]
[1659271108554,0.87470955,23772.0,23771.0,0.0553014]
[1659271110002,0.87470955,23772.0,23771.0,0.01034473]
[1659271118496,0.00517,23771.0,23768.0,7.074e-05]
[1659271118736,0.13125879,23769.0,23768.0,7.074e-05]
[1659271118992,0.84217012,23769.0,23768.0,7.074e-05]
[1659271119938,0.84217012,23769.0,23768.0,0.01003486]
[1659271121055,0.87817012,23769.0,23768.0,0.01003486]
[1659271122531,0.84217012,23769.0,23768.0,0.01003486]
[1659271123188,0.87817012,23769.0,23768.0,0.01003486]
[1659271124325,0.84217012,23769.0,23768.0,0.01003486]
[1659271125938,0.84217012,23769.0,23768.0,0.00992462]
[1659271126413,1.57817012,23769.0,23768.0,0.00992462]
[1659271127102,1.62017012,23769.0,23768.0,0.00992462]
[1659271127532,1.54217012,23769.0,23768.0,0.00992462]
[1659271127741,1.24217012,23769.0,23768.0,0.00992462]
[1659271128008,0.84217012,23769.0,23768.0,0.00992462]
[1659271128800,1.14217012,23769.0,23768.0,0.00992462]
[1659271129028,1.18417012,23769.0,23768.0,0.00992462]
[1659271129263,0.88417012,23769.0,23768.0,0.00992462]
[1659271130843,1.18417012,23769.0,23768.0,0.00992462]
[1659271131511,0.88417012,23769.0,23768.0,0.00992462]
[1659271131711,1.18417012,23769.0,23768.0,0.00992462]
[1659271132379,1.14217012,23769.0,23768.0,0.00992462]
[1659271132786,0.84217012,23769.0,23768.0,0.00992462]
[1659271133058,0.88417012,23769.0,23768.0,0.00992462]
[1659271133254,1.18417012,23769.0,23768.0,0.00992462]
[1659271133954,0.88417012,23769.0,23768.0,0.00992462]
[1659271134405,0.84217012,23769.0,23768.0,0.00992462]
[1659271134608,1.14217012,23769.0,23768.0,0.00992462]
[1659271135072,1.18517012,23769.0,23768.0,0.00992462]
[1659271135314,0.88517012,23769.0,23768.0,0.00992462]
[1659271135989,0.88517012,23769.0,23765.0,0.00519757]
[1659271135990,0.05497968,23768.0,23765.0,0.00519757]
[1659271136241,1.23125879,23766.0,23765.0,0.00519757]
[1659271136459,1.99217012,23766.0,23765.0,0.00519757]
[1659271136680,0.89217012,23766.0,23765.0,0.00519757]
[1659271136946,0.43491279,23766.0,23765.0,0.00519757]
[1659271137150,0.16825879,23766.0,23765.0,0.00519757]
[1659271137508,0.47191279,23766.0,23765.0,0.00519757]
[1659271137970,0.47191279,23766.0,23765.0,0.05114757]
[1659271138190,0.037,23766.0,23765.0,0.05114757]
[1659271138432,0.5899644,23771.0,23765.0,0.00519757]
[1659271138647,0.71091133,23770.0,23765.0,0.00519757]
[1659271138880,0.303654,23769.0,23765.0,0.00519757]
[1659271139131,0.303654,23768.0,23765.0,0.00519757]
[1659271139351,0.303654,23767.0,23765.0,0.00519757]
[1659271139808,0.303658,23766.0,23765.0,0.00519757]
[1659271140012,0.03125879,23767.0,23765.0,0.00519757]
[1659271140219,0.303658,23766.0,23765.0,0.00519757]
[1659271140385,0.40725733,23770.0,23765.0,0.00519757]
[1659271140640,0.303658,23769.0,23765.0,0.00519757]
[1659271140839,0.303658,23768.0,23765.0,0.01007056]
[1659271141064,0.303658,23767.0,23765.0,0.01007056]
[1659271141248,0.303658,23766.0,23765.0,0.01007056]
[1659271141448,0.05,23766.0,23765.0,0.01007056]
[1659271141650,0.44825733,23770.0,23765.0,0.01007056]
[1659271141911,0.303658,23769.0,23765.0,0.01007056]
[1659271142099,0.303658,23768.0,23766.0,0.40725733]
[1659271142305,0.03125879,23769.0,23767.0,0.03467316]
[1659271142522,0.303658,23768.0,23767.0,0.03467316]
[1659271142636,0.57105555,23772.0,23767.0,0.03467316]
[1659271142839,0.303658,23771.0,23767.0,0.03467316]
[1659271143054,0.044,23769.0,23767.0,0.03467316]
[1659271143300,0.347658,23769.0,23767.0,0.03467316]
[1659271143512,0.303658,23768.0,23767.0,0.03467316]
[1659271144143,0.07525879,23769.0,23767.0,0.03467316]
[1659271144362,6.629e-05,23771.0,23767.0,0.03467316]
[1659271144363,0.303658,23770.0,23767.0,0.03467316]
[1659271144595,0.33491679,23770.0,23767.0,0.03467316]
[1659271144808,0.303658,23769.0,23767.0,0.03467316]
[1659271145033,0.303658,23769.0,23768.0,0.00487221]
[1659271145257,0.37691679,23770.0,23768.0,0.00487221]
[1659271146185,0.303658,23769.0,23768.0,0.00487221]
[1659271146292,0.353658,23769.0,23768.0,0.00487221]
[1659271146516,0.05,23769.0,23768.0,0.00487221]
[1659271146718,0.33491679,23770.0,23768.0,0.00487221]
[1659271146953,0.089,23769.0,23768.0,0.00972657]
[1659271147147,0.039,23769.0,23768.0,0.00972657]
[1659271147411,0.342658,23769.0,23768.0,0.00972657]
[1659271148916,0.303658,23769.0,23768.0,0.00972657]
[1659271149164,0.342658,23769.0,23768.0,0.00972657]
[1659271150283,0.303658,23769.0,23768.0,0.00972657]
[1659271151008,0.342658,23769.0,23768.0,0.00972657]
[1659271152399,0.303658,23769.0,23768.0,0.00972657]
[1659271152885,0.353658,23769.0,23768.0,0.00972657]
[1659271153113,0.089,23769.0,23768.0,0.00972657]
[1659271153328,0.392658,23769.0,23768.0,0.00972657]
[1659271153559,0.74991533,23769.0,23768.0,0.00972657]
[1659271153784,0.79991533,23769.0,23768.0,0.00972657]
[1659271154873,0.76091533,23769.0,23768.0,0.00972657]
[1659271155099,0.79991533,23769.0,23768.0,0.00972657]
[1659271156510,0.76091533,23769.0,23768.0,0.00972657]
[1659271157185,0.79891533,23769.0,23768.0,0.00972657]
[1659271159192,0.83691533,23769.0,23768.0,0.00972657]
[1659271160846,0.76091533,23769.0,23768.0,0.00972657]
[1659271161091,0.79891533,23769.0,23768.0,0.00972657]
[1659271162683,0.76091533,23769.0,23768.0,0.00972657]
[1659271163126,0.79891533,23769.0,23768.0,0.00972657]
[1659271163586,0.74891533,23769.0,23768.0,0.0112707]
[1659271163811,0.79891533,23769.0,23768.0,0.00972657]
[1659271164055,0.74891533,23769.0,23768.0,0.00972657]
[1659271164495,0.71091533,23769.0,23768.0,0.00972657]
[1659271165165,0.74891533,23769.0,23768.0,0.00972657]
[1659271166336,0.71091533,23769.0,23768.0,0.00972657]
[1659271167009,0.74891533,23769.0,23768.0,0.00972657]
[1659271168386,0.71091533,23769.0,23768.0,0.00972657]
[1659271169051,0.74891533,23769.0,23768.0,0.00972657]
[1659271169622,0.341658,23769.0,23768.0,0.00972657]
[1659271169825,0.038,23769.0,23768.0,0.04439973]
[1659271170273,0.303658,23770.0,23768.0,0.00972657]
[1659271170501,0.303658,23769.0,23768.0,0.00972657]
[1659271173022,0.330658,23769.0,23768.0,0.08472657]
[1659271174336,0.303658,23769.0,23768.0,0.00972657]
[1659271175013,0.303658,23769.0,23768.0,0.05972657]
[1659271175239,0.310658,23769.0,23768.0,0.05972657]
[1659271175894,0.007,23769.0,23768.0,0.05972657]
[1659271176120,0.310658,23769.0,23768.0,0.05972657]
[1659271176415,0.303658,23769.0,23768.0,0.00972657]
[1659271177049,0.310658,23769.0,23768.0,0.05972657]
[1659271178805,0.303658,23769.0,23768.0,0.00972657]
[1659271179203,0.310658,23769.0,23768.0,0.05972657]
[1659271180364,0.303658,23769.0,23768.0,0.00972657]
[1659271181028,0.310658,23769.0,23768.0,0.05972657]
[1659271181605,0.310658,23769.0,23768.0,0.09439973]
[1659271182025,0.310658,23769.0,23768.0,0.05972657]
[1659271182596,0.303658,23769.0,23768.0,0.00972657]
[1659271183024,0.303658,23769.0,23768.0,0.08572657]
[1659271184864,0.303658,23769.0,23768.0,0.00972657]
[1659271185079,0.303658,23769.0,23768.0,0.08572657]
[1659271185993,0.57105555,23772.0,23768.0,0.08572657]
[1659271186200,0.303658,23771.0,23768.0,0.08572657]
[1659271186424,0.303658,23770.0,23768.0,0.04439973]
[1659271186677,0.33491679,23770.0,23768.0,0.00972657]
[1659271186850,0.303658,23769.0,23768.0,0.00972657]
[1659271187174,0.33491679,23770.0,23768.0,0.00972657]
[1659271187387,0.303658,23770.0,23768.0,0.00972657]
[1659271187528,0.33491679,23770.0,23768.0,0.00972657]
[1659271188971,0.303658,23769.0,23768.0,0.05014396]
[1659271189218,0.303658,23769.0,23768.0,0.00972657]
[1659271189782,0.30001133,23769.0,23768.0,0.00972657]
[1659271191128,0.30001133,23769.0,23768.0,0.08572657]
[1659271192346,0.30001133,23769.0,23768.0,0.00972657]
[1659271193163,0.30001133,23769.0,23768.0,0.08572657]
[1659271194440,0.30001133,23769.0,23768.0,0.00972657]
[1659271195007,0.30001133,23769.0,23768.0,0.08572657]
[1659271196346,0.30001133,23769.0,23768.0,0.00972657]
[1659271197000,0.30001133,23769.0,23768.0,0.08572657]
[1659271198424,0.30001133,23769.0,23768.0,0.00972657]
[1659271199042,0.30001133,23769.0,23768.0,0.08572657]
[1659271199734,0.303658,23770.0,23768.0,0.08572657]
[1659271199927,0.05,23769.0,23768.0,0.08572657]
[1659271200153,0.303649,23769.0,23768.0,0.08572657]
[1659271200389,0.303649,23769.0,23768.0,0.00972657]
[1659271201116,0.303649,23769.0,23768.0,0.08572657]
[1659271201344,0.71090633,23769.0,23768.0,0.08572657]
[1659271201555,1.09249633,23769.0,23768.0,0.08572657]
[1659271201777,0.79249633,23769.0,23768.0,0.08572657]
[1659271202262,0.76090633,23769.0,23768.0,0.08572657]
[1659271202470,0.76090633,23769.0,23768.0,0.00972657]
[1659271202746,0.53299464,23769.0,23768.0,0.00487221]
[1659271203130,0.56899464,23769.0,23768.0,0.00969795]
[1659271203624,0.41899464,23769.0,23768.0,0.00969795]
[1659271204503,0.38299464,23769.0,23768.0,0.00969795]
[1659271205151,0.41899464,23769.0,23768.0,0.00969795]
[1659271205930,0.11534564,23769.0,23768.0,0.00969795]
[1659271206153,0.41899464,23769.0,23768.0,0.00969795]
[1659271206370,0.38299464,23769.0,23768.0,0.00969795]
[1659271206587,0.57105555,23772.0,23768.0,0.31334695]
[1659271206835,0.57105555,23772.0,23768.0,0.00969795]
[1659271207053,0.57105555,23772.0,23769.0,0.40725733]
[1659271207286,0.57105555,23772.0,23770.0,0.43467316]
[1659271207522,0.57105555,23772.0,23771.0,0.59984233]
[1659271207768,0.57105555,23772.0,23771.0,0.93142233]
[1659271207989,0.57105555,23772.0,23771.0,0.63142233]
[1659271208220,0.57105555,23772.0,23771.0,0.192585]
[1659271208499,0.57105555,23772.0,23770.0,0.03467316]
[1659271208728,0.57105555,23772.0,23769.0,0.303649]
[1659271208945,0.64905555,23772.0,23771.0,0.033]
[1659271209655,0.64905555,23772.0,23771.0,0.06767316]
[1659271209891,0.64893856,23772.0,23771.0,0.033]
[1659271210143,0.64893856,23772.0,23771.0,0.03777571]
[1659271210376,0.57093856,23772.0,23771.0,0.00477571]
[1659271210606,0.57093856,23772.0,23771.0,0.03944887]
[1659271210827,0.57093856,23772.0,23771.0,0.04235178]
[1659271211043,0.64893856,23772.0,23771.0,0.07535178]
[1659271211262,0.64893856,23772.0,23768.0,0.40725733]
[1659271211481,0.64893856,23772.0,23769.0,0.303649]
[1659271211724,0.64893856,23772.0,23770.0,0.192581]
[1659271211960,0.64893856,23772.0,23769.0,0.28996108]
[1659271212185,0.64893856,23772.0,23768.0,0.40725733]
[1659271212414,0.64893856,23772.0,23769.0,0.303649]
[1659271212647,0.64901085,23772.0,23771.0,0.00477115]
[1659271212867,0.57101085,23772.0,23771.0,0.00477115]
[1659271213090,0.65001085,23772.0,23771.0,0.00477115]
[1659271213308,0.64993856,23772.0,23771.0,0.00477115]
[1659271213818,0.95358756,23772.0,23771.0,0.00477115]
[1659271214044,0.64993856,23772.0,23771.0,0.00477115]
[1659271214273,0.57093856,23772.0,23771.0,0.00477115]
[1659271214483,0.57093856,23772.0,23771.0,0.0049163]
[1659271214715,0.57093856,23772.0,23771.0,0.00014515]
[1659271214945,0.64993856,23772.0,23771.0,0.00014515]
[1659271216061,0.64993856,23772.0,23769.0,0.00470307]
[1659271216255,0.57093856,23772.0,23770.0,0.00014515]
[1659271216463,0.57093856,23772.0,23770.0,0.04609515]
[1659271216661,0.05,23771.0,23770.0,0.04595]
[1659271216927,0.60219735,23772.0,23770.0,0.04595]
[1659271217141,0.68119735,23772.0,23770.0,0.04595]
[1659271218387,0.60219735,23772.0,23770.0,0.04595]
[1659271219039,0.68119735,23772.0,23770.0,0.04595]
[1659271219199,0.68125929,23772.0,23770.0,0.04595]
[1659271219626,0.6500005,23772.0,23770.0,0.04595]
[1659271220314,0.57093856,23772.0,23770.0,0.04595]
[1659271220835,0.5710005,23772.0,23770.0,0.04595]
[1659271221082,0.6500005,23772.0,23770.0,0.04595]
[1659271221298,0.6500005,23772.0,23771.0,0.40725733]
[1659271221761,0.64993856,23772.0,23771.0,0.71090633]
[1659271222401,0.57093856,23772.0,23771.0,0.71090633]
[1659271222604,0.57093856,23772.0,23771.0,0.71560863]
[1659271223102,0.63993856,23772.0,23771.0,0.41195963]
[1659271223440,0.63993856,23772.0,23771.0,0.71560863]
[1659271223689,0.63993856,23772.0,23771.0,0.41195963]
[1659271224787,0.57093856,23772.0,23771.0,0.41195963]
[1659271225055,0.64993856,23772.0,23771.0,0.41195963]
[1659271225999,0.64993856,23772.0,23771.0,0.71560863]
[1659271226223,0.64993856,23772.0,23771.0,0.60450363]
[1659271226424,0.64993856,23772.0,23771.0,0.41195963]
[1659271226745,0.57093856,23772.0,23771.0,0.41195963]
[1659271227221,0.67751463,23772.0,23771.0,0.41195963]
[1659271228303,0.57093856,23772.0,23771.0,0.41195963]
[1659271228737,0.57093856,23772.0,23771.0,0.41207971]
[1659271229178,0.64993856,23772.0,23771.0,0.41207971]
[1659271230411,0.57093856,23772.0,23771.0,0.41207971]
[1659271231017,0.64993856,23772.0,23771.0,0.41207971]
[1659271231625,0.64993856,23772.0,23771.0,0.41195963]
[1659271231843,0.64993856,23772.0,23771.0,0.41207971]
[1659271232016,0.64993856,23772.0,23771.0,0.41195963]
[1659271232232,0.57093856,23772.0,23771.0,0.41195963]
[1659271232439,0.57093856,23772.0,23771.0,0.71560863]
[1659271232675,0.57093856,23772.0,23771.0,0.41195963]
[1659271233103,0.64993856,23772.0,23771.0,0.41195963]
[1659271234092,0.64680068,23772.0,23771.0,0.41207971]
[1659271234326,0.56726872,23772.0,23771.0,0.41207971]
[1659271234559,0.56726872,23772.0,23771.0,0.0047023]
[1659271234793,0.95849379,23772.0,23771.0,0.0047023]
[1659271235011,0.98749379,23772.0,23771.0,0.0047023]
[1659271236375,0.90849379,23772.0,23771.0,0.0047023]
[1659271237102,0.98849379,23772.0,23771.0,0.0047023]
[1659271238227,0.90849379,23772.0,23771.0,0.0047023]
[1659271239108,0.98849379,23772.0,23771.0,0.0047023]
[1659271240227,0.95091772,23772.0,23771.0,0.0047023]
[1659271240668,0.87091772,23772.0,23771.0,0.0047023]
[1659271241109,0.95091772,23772.0,23771.0,0.0047023]
[1659271241525,0.98849379,23772.0,23771.0,0.0047023]
[1659271242172,0.95091772,23772.0,23771.0,0.0047023]
[1659271242394,0.87091772,23772.0,23771.0,0.0047023]
[1659271242628,0.56726872,23772.0,23771.0,0.0047023]
[1659271243076,0.64626872,23772.0,23771.0,0.0047023]
[1659271244403,0.56726872,23772.0,23771.0,0.0047023]
[1659271245133,0.64626872,23772.0,23771.0,0.0047023]
[1659271245775,0.68384479,23772.0,23771.0,0.0047023]
[1659271246002,0.98749379,23772.0,23771.0,0.0047023]
[1659271246464,0.90849379,23772.0,23771.0,0.0047023]
[1659271247181,0.96549379,23772.0,23771.0,0.0047023]
[1659271248096,0.92791772,23772.0,23771.0,0.0047023]
[1659271248374,0.96549379,23772.0,23771.0,0.0047023]
[1659271248849,0.90849379,23772.0,23771.0,0.0047023]
[1659271249082,0.96549379,23772.0,23771.0,0.0047023]
[1659271250440,0.90849379,23772.0,23771.0,0.0047023]
[1659271251165,0.96549379,23772.0,23771.0,0.0047023]
[1659271252557,0.90849379,23772.0,23771.0,0.0047023]
[1659271253001,0.92791772,23772.0,23771.0,0.0047023]
[1659271254333,0.87091772,23772.0,23771.0,0.0047023]
[1659271255096,0.64626872,23772.0,23771.0,0.0047023]
[1659271256419,0.56726872,23772.0,23771.0,0.0047023]
[1659271257081,0.64626872,23772.0,23771.0,0.0047023]
[1659271257957,0.68384479,23772.0,23771.0,0.0047023]
[1659271258402,0.56726872,23772.0,23771.0,0.00496029]
[1659271258652,0.56726872,23772.0,23771.0,0.0047023]
[1659271259102,0.64626872,23772.0,23771.0,0.0047023]
[1659271260547,0.56726872,23772.0,23771.0,0.0047023]
[1659271261000,0.87091772,23772.0,23771.0,0.0047023]
[1659271261220,0.94991772,23772.0,23771.0,0.0047023]
[1659271262114,0.64626872,23772.0,23771.0,0.0047023]
[1659271262343,0.87091772,23772.0,23771.0,0.0047023]
[1659271262634,0.56726872,23772.0,23771.0,0.0047023]
[1659271263106,0.64626872,23772.0,23771.0,0.0047023]
[1659271263983,0.64618486,23772.0,23771.0,0.2149383]